bitfinex/quotes_BTCUSD_20220120
["timestamp","ask_amount","ask_price","bid_price","bid_amount"]
[1642674542308,0.37264143,42111.0,42110.0,0.51692665]
[1642674542564,0.37264143,42111.0,42110.0,1.61508451]
[1642674542764,0.37264143,42111.0,42110.0,1.61529079]
[1642674543366,0.37264143,42111.0,42110.0,1.01217993]
[1642674543765,0.39064143,42111.0,42110.0,1.01217993]
[1642674543966,0.39064143,42111.0,42110.0,2.72523807]
[1642674545167,0.37264143,42111.0,42110.0,2.0220196]
[1642674545768,0.39164143,42111.0,42110.0,2.0220196]
[1642674546205,0.39164143,42111.0,42110.0,2.72535567]
[1642674547009,0.37264143,42111.0,42110.0,2.72535567]
[1642674547408,0.37264143,42111.0,42110.0,2.0220196]
[1642674547805,0.39764143,42111.0,42110.0,2.0220196]
[1642674549008,0.37264143,42111.0,42110.0,2.0220196]
[1642674549810,0.39964143,42111.0,42110.0,2.0220196]
[1642674551056,0.37264143,42111.0,42110.0,2.0220196]
[1642674551257,0.37102699,42111.0,42110.0,2.0220196]
[1642674551856,0.39702699,42111.0,42110.0,2.0220196]
[1642674553056,0.37102699,42111.0,42110.0,2.0220196]
[1642674553810,0.39702699,42111.0,42110.0,2.0220196]
[1642674555513,0.39702699,42111.0,42110.0,2.72660712]
[1642674555813,0.41202699,42111.0,42110.0,2.0220196]
[1642674556016,0.41202699,42111.0,42110.0,1.9601596]
[1642674556213,0.41202699,42111.0,42110.0,2.66488008]
[1642674556412,0.41202699,42111.0,42110.0,1.9601596]
[1642674556813,0.41202699,42111.0,42110.0,2.0601596]
[1642674557013,0.37102699,42111.0,42110.0,2.0601596]
[1642674557463,0.37102699,42111.0,42110.0,1.9720196]
[1642674557860,0.39502699,42111.0,42110.0,1.9720196]
[1642674559160,0.37102699,42111.0,42110.0,1.9720196]
[1642674559763,0.37102699,42111.0,42110.0,1.9101596]
[1642674559968,0.39602699,42111.0,42110.0,1.9601596]
[1642674560164,0.63602699,42111.0,42110.0,1.9601596]
[1642674561320,0.61102699,42111.0,42110.0,1.9601596]
[1642674561907,0.63502699,42111.0,42110.0,1.9601596]
[1642674563210,0.61102699,42111.0,42110.0,1.9601596]
[1642674564110,0.63802699,42111.0,42110.0,1.9601596]
[1642674565162,0.61102699,42111.0,42110.0,1.9601596]
[1642674566063,0.63602699,42111.0,42110.0,1.9601596]
[1642674566461,0.63614484,42111.0,42110.0,1.9601596]
[1642674566660,0.63614484,42111.0,42110.0,1.9101596]
[1642674567362,0.61114484,42111.0,42110.0,1.9601596]
[1642674567965,0.63514484,42111.0,42110.0,1.9601596]
[1642674569206,0.61114484,42111.0,42110.0,1.9601596]
[1642674569604,0.61114484,42111.0,42110.0,2.0720196]
[1642674570007,0.62714484,42111.0,42110.0,2.0720196]
[1642674570209,0.62714484,42111.0,42110.0,2.0720702]
[1642674571324,0.05459097,42117.0,42112.0,0.10342807]
[1642674571511,0.05459097,42117.0,42116.0,1.233187]
[1642674571709,0.05459097,42117.0,42116.0,2.29647983]
[1642674571909,0.05459097,42117.0,42116.0,2.49108041]
[1642674572309,0.05459097,42117.0,42116.0,2.50294041]
[1642674572569,0.02295642,42117.0,42116.0,2.50294041]
[1642674573964,0.02295642,42117.0,42116.0,2.54894041]
[1642674574765,0.02295642,42117.0,42116.0,1.69894041]
[1642674575164,0.02295642,42117.0,42116.0,1.65294041]
[1642674575767,2.22e-06,42117.0,42116.0,1.65294041]
[1642674575967,2.22e-06,42117.0,42116.0,1.74694041]
[1642674577226,2.22e-06,42117.0,42116.0,1.65294041]
[1642674577424,2.22e-06,42117.0,42116.0,1.44108041]
[1642674578130,2.22e-06,42117.0,42116.0,1.50308041]
[1642674578725,2.22e-06,42117.0,42116.0,1.55308041]
[1642674578925,2.22e-06,42117.0,42116.0,1.70308041]
[1642674579228,2.22e-06,42117.0,42116.0,1.63294041]
[1642674579979,2.22e-06,42117.0,42116.0,1.71594041]
[1642674581178,0.24000222,42117.0,42116.0,1.63294041]
[1642674581979,0.24000222,42117.0,42116.0,1.72934584]
[1642674582379,2.22e-06,42117.0,42116.0,1.72934584]
[1642674583180,2.22e-06,42117.0,42116.0,1.64034584]
[1642674584012,2.22e-06,42117.0,42116.0,1.67544584]
[1642674584208,2.22e-06,42117.0,42116.0,1.46358584]
[1642674584410,2.22e-06,42117.0,42116.0,2.1602313]
[1642674585208,2.22e-06,42117.0,42116.0,2.0772313]
[1642674585609,2.22e-06,42117.0,42116.0,2.1772313]
[1642674586116,2.22e-06,42117.0,42116.0,2.2452313]
[1642674587113,2.22e-06,42117.0,42116.0,2.1772313]
[1642674587963,2.22e-06,42117.0,42116.0,2.2452313]
[1642674588465,0.27596251,42117.0,42116.0,2.20040429]
[1642674588668,0.27596251,42117.0,42116.0,2.2452313]
[1642674588864,0.27596251,42117.0,42116.0,2.1952313]
[1642674589064,0.27596251,42117.0,42116.0,2.20027788]
[1642674589265,0.27596251,42117.0,42116.0,2.18227788]
[1642674589665,0.27596251,42117.0,42116.0,1.47822699]
[1642674590064,0.27596251,42117.0,42116.0,1.54622699]
[1642674591315,0.27596251,42117.0,42116.0,1.47318041]
[1642674591912,0.27596251,42117.0,42116.0,1.54118041]
[1642674592112,0.27596251,42117.0,42116.0,2.24492962]
[1642674592313,0.27596251,42117.0,42116.0,2.24512046]
[1642674593314,0.27596251,42117.0,42116.0,2.17712046]
[1642674593919,0.27596251,42117.0,42116.0,2.24512046]
[1642674595156,0.12118301,42117.0,42116.0,2.24512046]
[1642674595557,2.22e-06,42117.0,42116.0,2.24687501]
[1642674596055,2.22e-06,42117.0,42116.0,1.6121258]
[1642674596254,2.22e-06,42117.0,42116.0,2.0321258]
[1642674596461,2.22e-06,42117.0,42116.0,1.9759858]
[1642674596655,2.22e-06,42117.0,42116.0,2.0759858]
[1642674597256,2.22e-06,42117.0,42116.0,2.0069858]
[1642674597856,2.22e-06,42117.0,42116.0,1.9569858]
[1642674598058,2.22e-06,42117.0,42116.0,1.9259858]
[1642674599310,2.22e-06,42117.0,42116.0,1.8569858]
[1642674599710,0.12184846,42119.0,42117.0,7.248e-05]
[1642674599911,0.12184846,42119.0,42117.0,1.97806119]
[1642674600210,0.12117769,42119.0,42118.0,6.876e-05]
[1642674600409,0.12117769,42119.0,42118.0,0.64480922]
[1642674600610,0.12117769,42119.0,42118.0,0.69480922]
[1642674601511,0.01,42120.0,42119.0,0.55]
[1642674601713,0.01,42120.0,42119.0,1.80813533]
[1642674601910,0.01,42120.0,42119.0,1.85813533]
[1642674602110,0.01,42120.0,42119.0,1.36720858]
[1642674602458,0.01,42120.0,42119.0,0.76399117]
[1642674602857,0.01,42120.0,42119.0,0.38054217]
[1642674603056,0.01,42120.0,42119.0,0.109]
[1642674603458,0.01,42120.0,42119.0,0.71219236]
[1642674603660,0.01,42120.0,42119.0,0.109]
[1642674603861,0.01,42120.0,42119.0,0.05]
[1642674604062,0.01,42120.0,42119.0,0.109]
[1642674605263,0.01,42120.0,42119.0,0.05]
[1642674605461,0.01,42120.0,42119.0,0.05174905]
[1642674605962,0.012,42120.0,42119.0,0.11274905]
[1642674607218,0.01,42120.0,42119.0,0.05174905]
[1642674608017,0.014,42120.0,42119.0,0.10074905]
[1642674609219,0.01,42120.0,42119.0,0.05174905]
[1642674609426,0.11665004,42120.0,42119.0,0.05174905]
[1642674610060,0.12265004,42120.0,42119.0,0.09474905]
[1642674611257,0.11665004,42120.0,42119.0,0.05174905]
[1642674612062,0.12565004,42120.0,42119.0,0.05174905]
[1642674612660,0.12565004,42120.0,42119.0,0.00174905]
[1642674613362,0.11665004,42120.0,42119.0,0.00174905]
[1642674614012,0.12565004,42120.0,42119.0,0.00174905]
[1642674615009,0.85,42118.0,42116.0,0.00019084]
[1642674615212,0.85,42116.0,42110.0,0.51692665]
[1642674615409,0.0012486,42113.0,42110.0,0.51692665]
[1642674615609,0.9268186,42113.0,42110.0,0.51692665]
[1642674615810,1.97163629,42113.0,42110.0,0.51692665]
[1642674616008,1.97163629,42113.0,42112.0,0.0011354]
[1642674616009,2.02635239,42113.0,42112.0,0.0011354]
[1642674616209,2.61078765,42113.0,42112.0,0.0011354]
[1642674616809,2.73198621,42113.0,42112.0,0.0011354]
[1642674617009,2.73198621,42113.0,42111.0,0.00012033]
[1642674617215,0.98473559,42112.0,42111.0,0.00012033]
[1642674617462,0.85,42111.0,42110.0,8.24e-05]
[1642674617661,0.85,42110.0,42102.0,0.11878544]
[1642674617866,0.3929737,42107.0,42102.0,0.11878544]
[1642674618064,0.54724705,42111.0,42103.0,0.00013752]
[1642674618065,0.55924705,42111.0,42103.0,0.00013752]
[1642674618263,0.12119856,42106.0,42103.0,0.00013752]
[1642674618464,0.25052588,42105.0,42103.0,0.00013752]
[1642674618661,0.37172444,42105.0,42103.0,0.00013752]
[1642674619062,0.12119856,42104.0,42103.0,0.00013752]
[1642674619666,0.25052588,42105.0,42103.0,0.00013752]
[1642674620064,0.011,42104.0,42103.0,0.00013752]
[1642674621064,0.11765004,42104.0,42103.0,0.00013752]
[1642674621328,0.38198046,42104.0,42103.0,0.00013752]
[1642674621528,0.10665004,42104.0,42103.0,0.00013752]
[1642674621730,0.3765565,42104.0,42103.0,0.00013752]
[1642674621932,0.10665004,42104.0,42103.0,0.00013752]
[1642674622132,0.39054693,42104.0,42103.0,0.00013752]
[1642674622439,0.51175181,42104.0,42102.0,0.00015471]
[1642674622632,0.27731608,42103.0,42102.0,0.00015471]
[1642674624033,0.28531608,42103.0,42102.0,0.00015471]
[1642674625072,0.008,42103.0,42102.0,0.00015471]
[1642674625267,0.34665004,42104.0,42102.0,0.00015471]
[1642674625463,0.58933245,42103.0,42102.0,0.00015471]
[1642674625665,0.34665004,42104.0,42102.0,0.00015471]
[1642674626063,0.014,42103.0,42102.0,0.00015471]
[1642674626265,0.06732502,42103.0,42102.0,0.00015471]
[1642674626466,0.12065004,42103.0,42102.0,0.00015471]
[1642674626664,0.39305762,42103.0,42102.0,0.00015471]
[1642674627264,0.10665004,42103.0,42102.0,0.00015471]
[1642674627564,0.10665004,42103.0,42102.0,0.00644083]
[1642674627770,0.10665004,42103.0,42102.0,0.00015471]
[1642674627964,0.11865004,42103.0,42102.0,0.00687403]
[1642674628164,0.11865004,42103.0,42102.0,0.00015471]
[1642674628364,0.11865004,42103.0,42102.0,0.00660405]
[1642674628565,0.11865004,42103.0,42102.0,0.00015471]
[1642674629412,0.10665004,42103.0,42102.0,0.00015471]
[1642674630010,0.13065004,42103.0,42102.0,0.00015471]
[1642674631309,0.10665004,42103.0,42102.0,0.00015471]
[1642674632114,0.12865004,42103.0,42102.0,0.00930105]
[1642674632312,0.12865004,42103.0,42102.0,0.84275005]
[1642674632566,0.12865004,42103.0,42102.0,0.99318604]
[1642674632766,0.12865004,42103.0,42102.0,0.53660371]
[1642674633466,0.10665004,42103.0,42102.0,0.54546371]
[1642674634069,0.2891,42110.0,42103.0,0.933449]
[1642674634270,0.30019592,42118.0,42104.0,0.059382]
[1642674634468,0.30019592,42118.0,42105.0,0.05938123]
[1642674634669,0.30019592,42118.0,42105.0,0.10948437]
[1642674634670,0.12119205,42115.0,42105.0,0.10948437]
[1642674634884,0.12119205,42115.0,42106.0,0.09206513]
[1642674635072,0.12119205,42115.0,42108.0,0.31903355]
[1642674635270,0.0008738,42114.0,42109.0,0.0479]
[1642674635475,0.0008738,42114.0,42109.0,0.0979]
[1642674635871,0.0008738,42114.0,42113.0,0.383449]
[1642674636072,6.876e-05,42115.0,42113.0,0.47983857]
[1642674636321,6.876e-05,42115.0,42114.0,0.783449]
[1642674636521,6.876e-05,42115.0,42114.0,0.483449]
[1642674637124,6.876e-05,42115.0,42114.0,0.78956491]
[1642674637323,0.01,42120.0,42114.0,1.44932491]
[1642674637524,0.01,42120.0,42119.0,0.05122349]
[1642674637723,0.01,42120.0,42119.0,0.48257249]
[1642674637925,0.00114078,42121.0,42119.0,0.48257249]
[1642674638127,0.00114078,42121.0,42120.0,0.383449]
[1642674638323,0.00114078,42121.0,42120.0,0.431349]
[1642674638523,0.00124392,42121.0,42120.0,0.481349]
[1642674639624,0.00124392,42121.0,42120.0,0.77865276]
[1642674640064,0.00124392,42121.0,42120.0,0.79765276]
[1642674640670,0.01739863,42121.0,42120.0,0.79765276]
[1642674641264,0.01739863,42121.0,42120.0,0.77865276]
[1642674642163,0.01739863,42121.0,42120.0,0.79765276]
[1642674642366,0.01739863,42121.0,42120.0,0.41420376]
[1642674642565,0.25739863,42121.0,42120.0,0.41420376]
[1642674643271,0.25739863,42121.0,42120.0,0.39520376]
[1642674643719,0.01739863,42121.0,42120.0,0.39520376]
[1642674644120,0.01739863,42121.0,42120.0,0.41320376]
[1642674645422,0.01739863,42121.0,42120.0,0.39520376]
[1642674646023,0.01739863,42121.0,42120.0,0.41320376]
[1642674647325,0.01739863,42121.0,42120.0,0.0979]
[1642674648166,0.01739863,42121.0,42120.0,0.1129]
[1642674649466,0.01739863,42121.0,42120.0,0.0979]
[1642674650067,0.01739863,42121.0,42120.0,0.1189]
[1642674650668,0.01739863,42121.0,42120.0,0.1689]
[1642674651418,0.01739863,42121.0,42120.0,0.1479]
[1642674652119,0.01739863,42121.0,42120.0,0.1629]
[1642674652619,0.01739863,42121.0,42120.0,0.1129]
[1642674652925,0.9157,42138.0,42124.0,0.05935149]
[1642674653124,0.9157,42138.0,42134.0,0.00129009]
[1642674653322,0.9157,42138.0,42135.0,0.00538309]
[1642674653624,0.00025785,42136.0,42135.0,0.00610144]
[1642674653819,0.11411465,42136.0,42134.0,0.00129009]
[1642674654019,0.00025785,42136.0,42134.0,0.00129009]
[1642674654221,0.88249954,42140.0,42135.0,0.006]
[1642674654419,0.11473211,42138.0,42135.0,0.006]
[1642674654619,0.00116639,42138.0,42135.0,0.01215026]
[1642674655065,1.95197197,42136.0,42135.0,0.01215026]
[1642674655464,1.95222982,42136.0,42135.0,0.00615026]
[1642674656064,1.95222982,42136.0,42135.0,0.01315026]
[1642674656271,0.00025785,42136.0,42135.0,0.07249323]
[1642674656866,0.00025785,42136.0,42135.0,0.06634297]
[1642674657269,0.00025785,42136.0,42135.0,0.05934297]
[1642674657967,0.00025785,42136.0,42135.0,0.33812884]
[1642674658168,0.00025785,42136.0,42135.0,0.33807303]
[1642674659317,0.00025785,42136.0,42135.0,0.33207303]
[1642674660125,0.00025785,42136.0,42135.0,0.07034297]
[1642674660920,0.00015637,42136.0,42135.0,0.07034297]
[1642674661521,0.00015637,42136.0,42135.0,0.05934297]
[1642674661923,0.00015637,42136.0,42133.0,0.11868254]
[1642674662122,0.00015637,42136.0,42135.0,0.01]
[1642674662321,2.34879728,42138.0,42135.0,0.01]
[1642674662563,2.34792312,42138.0,42135.0,0.01]
[1642674662868,0.00017356,42137.0,42135.0,0.01]
[1642674663265,0.00015637,42136.0,42135.0,0.01]
[1642674663464,0.00015637,42136.0,42133.0,0.11868254]
[1642674663665,0.00015637,42136.0,42133.0,0.37884941]
[1642674663870,0.00013918,42135.0,42133.0,0.37884941]
[1642674664066,0.00013918,42135.0,42134.0,0.2644831]
[1642674664265,2.34879728,42138.0,42134.0,0.2644831]
[1642674664466,2.34879728,42138.0,42133.0,0.13168254]
[1642674664768,0.00017356,42137.0,42133.0,0.13168254]
[1642674664968,0.00017356,42137.0,42133.0,0.39975395]
[1642674665170,0.00015637,42136.0,42134.0,0.05933977]
[1642674665573,0.00013918,42135.0,42134.0,0.10933977]
[1642674665779,0.00087416,42138.0,42135.0,0.85]
[1642674665975,0.00087416,42138.0,42137.0,1.83385044]
[1642674666229,0.001,42146.0,42138.0,0.85]
[1642674666436,0.001,42146.0,42145.0,0.001298]
[1642674666626,0.001,42146.0,42145.0,0.432647]
[1642674666826,0.001,42146.0,42145.0,0.482647]
[1642674668128,0.001,42146.0,42145.0,0.78363125]
[1642674668326,0.001,42146.0,42145.0,0.40018225]
[1642674668930,0.001,42146.0,42145.0,0.78363125]
[1642674669528,0.001,42146.0,42145.0,0.76863125]
[1642674670164,0.001,42146.0,42145.0,0.78463125]
[1642674672267,0.001,42146.0,42145.0,0.79963125]
[1642674672466,0.001,42146.0,42145.0,0.78363125]
[1642674672869,0.001,42146.0,42145.0,0.88363125]
[1642674673711,0.00086687,42148.0,42147.0,0.61863]
[1642674673916,0.00086687,42148.0,42147.0,0.871537]
[1642674674118,0.00086687,42148.0,42147.0,0.921537]
[1642674674313,0.00086687,42148.0,42147.0,0.862222]
[1642674674514,0.001,42153.0,42147.0,0.862222]
[1642674674716,0.00086689,42150.0,42148.0,0.44276736]
[1642674674915,0.00086689,42150.0,42149.0,0.27599777]
[1642674675119,0.00086689,42150.0,42149.0,0.383449]
[1642674675316,0.00112474,42150.0,42149.0,0.383449]
[1642674675715,0.00025785,42150.0,42149.0,0.383449]
[1642674676116,0.00025785,42150.0,42149.0,0.397449]
[1642674676314,0.00025785,42150.0,42149.0,0.65808773]
[1642674676515,0.00025785,42150.0,42149.0,0.74408773]
[1642674676723,0.00025785,42150.0,42149.0,0.69408773]
[1642674677116,0.00025785,42150.0,42149.0,0.433449]
[1642674677314,0.00025785,42150.0,42149.0,0.62446714]
[1642674677564,0.00025785,42150.0,42149.0,0.94556478]
[1642674678163,0.00025785,42150.0,42149.0,0.9653145]
[1642674678365,0.00025785,42150.0,42149.0,0.50576674]
[1642674679370,0.00025785,42150.0,42149.0,0.44276674]
[1642674679767,0.00025785,42150.0,42149.0,0.383449]
[1642674679966,0.00025785,42150.0,42142.0,0.11865607]
[1642674680166,0.00025785,42150.0,42149.0,0.01]
[1642674680369,0.27151143,42152.0,42149.0,0.01]
[1642674680566,0.383449,42151.0,42149.0,0.01169771]
[1642674680864,0.38372404,42151.0,42149.0,0.01169771]
[1642674681513,0.38372404,42151.0,42149.0,0.00169771]
[1642674685464,0.38372404,42151.0,42140.0,0.2883]
[1642674685465,0.38372404,42151.0,42140.0,0.28999587]
[1642674685665,0.00027504,42151.0,42140.0,0.33999587]
[1642674686068,1.80724614,42147.0,42140.0,0.33999587]
[1642674686266,1.80724614,42147.0,42140.0,0.06569587]
[1642674686467,0.30553387,42145.0,42140.0,0.01569587]
[1642674686867,0.00015471,42144.0,42140.0,0.01569587]
[1642674687267,0.00013752,42143.0,42140.0,0.01569587]
[1642674687468,0.00013752,42143.0,42140.0,0.00169587]
[1642674687667,0.35343387,42145.0,42140.0,0.00169587]
[1642674687668,0.00012033,42142.0,42140.0,0.00169587]
[1642674687966,0.00010314,42141.0,42140.0,0.00169587]
[1642674688166,0.00010314,42141.0,42140.0,0.00669587]
[1642674689521,0.00010314,42141.0,42140.0,0.00169587]
[1642674689522,0.38355214,42141.0,42140.0,0.00169587]
[1642674689728,1.09854178,42141.0,42140.0,0.0016349]
[1642674689924,0.49644178,42141.0,42140.0,0.0016349]
[1642674690123,0.69644178,42141.0,42140.0,0.0016349]
[1642674690324,0.50744178,42141.0,42140.0,0.0016349]
[1642674690524,0.50744178,42141.0,42128.0,0.00171419]
[1642674690728,0.30242446,42134.0,42128.0,0.00894601]
[1642674690926,0.30242446,42134.0,42129.0,0.38355214]
[1642674691126,0.30242446,42134.0,42129.0,0.38931572]
[1642674691325,0.2,42133.0,42130.0,8.595e-05]
[1642674691527,0.35032446,42134.0,42130.0,8.595e-05]
[1642674691926,0.27964417,42133.0,42129.0,0.00688922]
[1642674692127,0.47964417,42133.0,42129.0,0.00010314]
[1642674692336,0.0479,42132.0,42130.0,0.00108595]
[1642674692585,0.383449,42131.0,42130.0,0.001]
[1642674692785,1.1825518,42131.0,42130.0,0.001]
[1642674692985,1.4792095,42131.0,42130.0,0.00108595]
[1642674693183,0.9825518,42131.0,42130.0,0.00108595]
[1642674693386,0.66592536,42129.0,42128.0,0.00171419]
[1642674693685,0.79727436,42129.0,42128.0,0.00171419]
[1642674694287,1.05795306,42129.0,42128.0,0.00171419]
[1642674694485,1.32672825,42129.0,42128.0,0.00171419]
[1642674695287,1.56672825,42129.0,42128.0,0.00171419]
[1642674695488,1.54972825,42129.0,42124.0,0.0017922]
[1642674695689,0.00120054,42125.0,42124.0,0.0017922]
[1642674695889,1.08254954,42125.0,42124.0,0.0017922]
[1642674696089,1.41442031,42125.0,42124.0,0.0017922]
[1642674696326,1.42542031,42125.0,42124.0,0.0017922]
[1642674696725,1.71123588,42125.0,42124.0,0.0017922]
[1642674697324,1.06123588,42125.0,42124.0,0.0017922]
[1642674697529,1.05023588,42125.0,42124.0,0.0017922]
[1642674698224,1.06023588,42125.0,42124.0,0.0017922]
[1642674699423,1.05023588,42125.0,42124.0,0.0017922]
[1642674700269,1.06123588,42125.0,42124.0,0.0017922]
[1642674700481,1.07309588,42125.0,42124.0,0.0017922]
[1642674701470,1.06209588,42125.0,42124.0,0.0017922]
[1642674702270,1.07409588,42125.0,42124.0,0.0017922]
[1642674702472,1.06223588,42125.0,42124.0,0.0017922]
[1642674703472,1.05023588,42125.0,42124.0,0.0017922]
[1642674704315,1.06223588,42125.0,42124.0,0.0017922]
[1642674704517,1.17409588,42125.0,42124.0,0.0017922]
[1642674705121,1.07409588,42125.0,42124.0,0.0017922]
[1642674705519,1.06209588,42125.0,42124.0,0.0017922]
[1642674706322,1.06223588,42125.0,42124.0,0.0017922]
[1642674706722,1.06215817,42125.0,42124.0,0.0017922]
[1642674707672,1.00225817,42125.0,42124.0,0.0017922]
[1642674708271,1.01825817,42125.0,42124.0,0.0017922]
[1642674709572,1.00225817,42125.0,42124.0,0.0017922]
[1642674710378,1.01825817,42125.0,42124.0,0.0017922]
[1642674711617,1.00225817,42125.0,42124.0,0.0017922]
[1642674712415,1.01325817,42125.0,42124.0,0.0017922]
[1642674713019,1.06115817,42125.0,42124.0,0.0017922]
[1642674713214,1.07301817,42125.0,42124.0,0.0017922]
[1642674713615,1.06201817,42125.0,42124.0,0.0017922]
[1642674714317,1.17401817,42125.0,42124.0,0.0017922]
[1642674714517,1.70810817,42125.0,42124.0,0.0017922]
[1642674714715,1.35810817,42125.0,42124.0,0.0017922]
[1642674715574,1.34610817,42125.0,42124.0,0.0017922]
[1642674716372,1.35610817,42125.0,42124.0,0.0017922]
[1642674716570,1.25610817,42125.0,42124.0,0.0017922]
[1642674717574,1.24610817,42125.0,42124.0,0.0017922]
[1642674718276,1.25610817,42125.0,42124.0,0.0017922]
[1642674719319,1.35610817,42125.0,42124.0,0.0017922]
[1642674719519,1.24610817,42125.0,42124.0,0.0017922]
[1642674720121,1.19610817,42125.0,42124.0,0.0017922]
[1642674720324,1.21201817,42125.0,42124.0,0.0017922]
[1642674720723,1.22201817,42125.0,42124.0,0.0017922]
[1642674721620,1.21201817,42125.0,42124.0,0.0017922]
[1642674722468,1.22401817,42125.0,42124.0,0.0017922]
[1642674723564,1.22401817,42125.0,42124.0,0.00172603]
[1642674724365,1.23601817,42125.0,42124.0,0.00172603]
[1642674725366,0.059382,42124.0,42119.0,0.00121043]
[1642674725566,0.383449,42123.0,42119.0,0.00121043]
[1642674725869,0.27259781,42122.0,42120.0,0.0001719]
[1642674726070,0.733449,42121.0,42120.0,0.0001719]
[1642674726315,0.383449,42121.0,42120.0,0.0001719]
[1642674726516,0.383449,42121.0,42120.0,0.00023807]
[1642674726919,0.383449,42121.0,42120.0,0.00016232]
[1642674728426,0.399449,42121.0,42120.0,0.00016232]
[1642674729969,0.383449,42121.0,42120.0,0.00016232]
[1642674730369,0.399449,42121.0,42120.0,0.00016232]
[1642674730670,0.399449,42121.0,42120.0,0.00190302]
[1642674731669,0.383449,42121.0,42120.0,0.00190302]
[1642674732170,0.74751153,42121.0,42120.0,0.00190302]
[1642674732370,0.76551153,42121.0,42120.0,0.00190302]
[1642674733730,0.74751153,42121.0,42120.0,0.00190302]
[1642674734329,0.76451153,42121.0,42120.0,0.00190302]
[1642674735529,0.74751153,42121.0,42120.0,0.00190302]
[1642674736334,0.76251153,42121.0,42120.0,0.00190302]
[1642674737579,0.74751153,42121.0,42120.0,0.00190302]
[1642674738582,1.05939901,42121.0,42120.0,0.00190302]
[1642674738779,1.12125901,42121.0,42120.0,0.00190302]
[1642674738981,1.22125901,42121.0,42120.0,0.00190302]
[1642674739578,1.20825901,42121.0,42120.0,0.00190302]
[1642674739778,1.15825901,42121.0,42120.0,0.00190302]
[1642674739979,0.5,42120.0,42112.0,0.00484227]
[1642674740383,0.01186,42119.0,42113.0,0.00012033]
[1642674740583,0.00121348,42115.0,42113.0,0.00012033]
[1642674740784,0.4979,42114.0,42113.0,0.00012033]
[1642674740983,1.14459216,42114.0,42110.0,0.0001719]
[1642674741231,0.20043633,42111.0,42105.0,0.00025785]
[1642674741637,0.29247633,42111.0,42104.0,0.00027504]
[1642674742431,0.29947633,42111.0,42104.0,0.00027504]
[1642674742830,0.28440607,42110.0,42102.0,0.00030942]
[1642674744433,0.28540607,42110.0,42104.0,0.00121063]
[1642674744980,0.33540607,42110.0,42105.0,0.00025785]
[1642674745185,0.57540607,42110.0,42105.0,0.00025785]
[1642674745580,0.29,42110.0,42105.0,0.00146845]
[1642674745779,0.29,42110.0,42105.0,0.0012106]
[1642674745979,0.24,42110.0,42106.0,0.00024066]
[1642674746382,0.249,42110.0,42106.0,0.00024066]
[1642674746580,0.65616812,42109.0,42106.0,0.00024066]
[1642674746785,0.26793106,42107.0,42106.0,0.00145125]
[1642674746980,0.31793106,42107.0,42106.0,0.00121059]
[1642674747180,0.31793106,42107.0,42106.0,0.00145125]
[1642674747181,0.05,42107.0,42106.0,0.00145125]
[1642674747380,0.32398006,42109.0,42106.0,0.00145125]
[1642674747580,0.3576,42110.0,42106.0,0.00145125]
[1642674747782,0.28295972,42109.0,42107.0,0.00022347]
[1642674748185,0.28295972,42109.0,42105.0,0.0012106]
[1642674748385,0.016,42109.0,42106.0,0.00024066]
[1642674749431,0.016,42109.0,42105.0,0.0012106]
[1642674749725,0.5196027,42110.0,42106.0,0.00024066]
[1642674750226,0.65803341,42109.0,42106.0,0.00024066]
[1642674750425,0.383449,42109.0,42106.0,0.01345125]
[1642674750726,0.5256027,42110.0,42107.0,0.00022347]
[1642674750928,0.246,42110.0,42107.0,0.00022347]
[1642674751730,0.24,42110.0,42107.0,0.00022347]
[1642674752473,0.268,42110.0,42107.0,0.00922347]
[1642674752874,0.268,42110.0,42108.0,0.00020628]
[1642674753676,0.24,42110.0,42108.0,0.00020628]
[1642674754076,0.24,42110.0,42107.0,0.00143405]
[1642674754277,0.24,42110.0,42107.0,0.00121058]
[1642674754581,0.24,42110.0,42108.0,0.07020628]
[1642674754776,0.383449,42109.0,42108.0,0.07020628]
[1642674754976,0.383449,42109.0,42108.0,0.07]
[1642674755176,0.24,42110.0,42108.0,0.07]
[1642674755580,0.24,42110.0,42109.0,0.00018909]
[1642674755777,0.623449,42110.0,42109.0,0.00018909]
[1642674755977,0.623449,42110.0,42108.0,0.00020628]
[1642674756228,0.383449,42109.0,42108.0,0.00020628]
[1642674756426,0.254,42110.0,42108.0,0.00020628]
[1642674756625,0.254,42110.0,42107.0,0.00121057]
[1642674756826,0.66107588,42109.0,42108.0,0.00020628]
[1642674757329,0.383449,42109.0,42108.0,0.00020628]
[1642674757624,0.383449,42109.0,42106.0,0.00121058]
[1642674757824,0.34306703,42108.0,42106.0,0.00121058]
[1642674758024,0.39306703,42108.0,42107.0,0.00022347]
[1642674758523,0.41406703,42108.0,42107.0,0.00022347]
[1642674758723,0.36406703,42108.0,42107.0,0.00022347]
[1642674758923,0.36406703,42108.0,42105.0,0.0012106]
[1642674759225,0.36406703,42108.0,42106.0,0.00024066]
[1642674759625,0.021,42108.0,42106.0,0.00024066]
[1642674760270,0.021,42108.0,42105.0,0.00121061]
[1642674760475,0.039,42108.0,42106.0,0.00024066]
[1642674760673,0.039,42108.0,42107.0,0.383449]
[1642674761085,0.039,42108.0,42107.0,0.44305219]
[1642674761873,0.24,42110.0,42107.0,0.44305219]
[1642674762274,0.24,42110.0,42108.0,0.00020628]
[1642674762474,0.285,42110.0,42108.0,0.00020628]
[1642674763075,0.24,42110.0,42108.0,0.00020628]
[1642674763730,0.24,42110.0,42109.0,0.383449]
[1642674764532,0.26592973,42110.0,42109.0,0.388449]
[1642674765632,0.26592973,42110.0,42109.0,0.383449]
[1642674765633,0.23992973,42110.0,42109.0,0.383449]
[1642674765832,0.23992973,42110.0,42108.0,0.00020628]
[1642674766230,0.23992973,42110.0,42107.0,0.00121057]
[1642674766430,0.25692973,42110.0,42108.0,0.00520628]
[1642674767673,0.23992973,42110.0,42108.0,0.00020628]
[1642674768475,0.28092973,42110.0,42108.0,0.00420628]
[1642674768676,0.28092973,42110.0,42108.0,0.004]
[1642674769776,0.23992973,42110.0,42107.0,0.00121058]
[1642674769977,0.23992973,42110.0,42108.0,0.383449]
[1642674770178,0.23992973,42110.0,42108.0,0.38365528]
[1642674770578,0.28492973,42110.0,42108.0,0.38365528]
[1642674771220,0.28492973,42110.0,42109.0,1.11844419]
[1642674771425,0.28492973,42110.0,42109.0,1.64986818]
[1642674771623,0.28492973,42110.0,42109.0,1.73922973]
[1642674771624,0.03492973,42110.0,42109.0,1.73922973]
[1642674771821,0.13682831,42124.0,42109.0,2.3448053]
[1642674772022,0.0008764,42126.0,42111.0,0.60557557]
[1642674772220,0.0008764,42126.0,42115.0,0.00121401]
[1642674772221,0.11055979,42123.0,42115.0,0.00121401]
[1642674772422,0.33382935,42118.0,42116.0,0.383449]
[1642674772621,0.33382935,42118.0,42116.0,0.38351776]